[Event "Late-Titled-Tuesday-Blitz-September-12-2023"]
[Site "Chess.com"]
[Date "2023.09.12"]
[Round "4"]
[White "Jenia84"]
[Black "ozates"]
[Result "0-1"]
[WhiteElo "2361"]
[BlackElo "2554"]
[TimeControl "180+1"]
[EndTime "14:36:08 PDT"]
[Termination "ozates won by resignation"]

1. e4 {[%clk 0:03:00.9]} 1... c5 {[%clk 0:02:58.9]} 2. Nf3 {[%clk 0:03:00.6]}
2... Nc6 {[%clk 0:02:59.4]} 3. Bb5 {[%clk 0:02:57.5]} 3... g6 {[%clk 0:02:57.5]}
4. O-O {[%clk 0:02:56.6]} 4... Bg7 {[%clk 0:02:57.3]} 5. Re1 {[%clk 0:02:57.2]}
5... e5 {[%clk 0:02:55.3]} 6. c3 {[%clk 0:02:57.3]} 6... Nge7 {[%clk 0:02:53.6]}
7. d4 {[%clk 0:02:56.5]} 7... exd4 {[%clk 0:02:51.9]} 8. e5 {[%clk 0:02:51.3]}
8... O-O {[%clk 0:02:50.6]} 9. cxd4 {[%clk 0:02:49.1]} 9... cxd4 {[%clk
0:02:50.6]} 10. Nbd2 {[%clk 0:02:41.7]} 10... d6 {[%clk 0:02:45.6]} 11. exd6
{[%clk 0:02:29.2]} 11... Qxd6 {[%clk 0:02:46.5]} 12. Ne4 {[%clk 0:02:29.1]}
12... Qc7 {[%clk 0:02:43.1]} 13. Bg5 {[%clk 0:02:26.4]} 13... Bg4 {[%clk
0:02:37.7]} 14. Rc1 {[%clk 0:02:23]} 14... f6 {[%clk 0:02:31.2]} 15. Bh4 {[%clk
0:02:22]} 15... Kh8 {[%clk 0:02:26.6]} 16. h3 {[%clk 0:02:20.7]} 16... Bf5
{[%clk 0:02:12.6]} 17. Qa4 {[%clk 0:01:48]} 17... Rad8 {[%clk 0:01:55.5]} 18.
Nxd4 {[%clk 0:01:15.3]} 18... Qb6 {[%clk 0:01:19.3]} 19. Nxc6 {[%clk 0:01:13.9]}
19... bxc6 {[%clk 0:01:18.1]} 20. Bxc6 {[%clk 0:01:04.9]} 20... Rd4 {[%clk
0:01:17.5]} 21. Qa3 {[%clk 0:00:47.2]} 21... Nxc6 {[%clk 0:01:11.3]} 22. Nd6
{[%clk 0:00:45.2]} 22... Rxh4 {[%clk 0:01:04.9]} 23. Nf7+ {[%clk 0:00:37.1]}
23... Kg8 {[%clk 0:00:55.4]} 24. Nd6 {[%clk 0:00:34.7]} 24... Rf4 {[%clk
0:00:52.7]} 25. Re2 {[%clk 0:00:29.1]} 25... Nd4 {[%clk 0:00:49.7]} 26. Re7
{[%clk 0:00:25.7]} 26... Nc2 {[%clk 0:00:38.5]} 27. Qg3 {[%clk 0:00:17.6]} 27...
Qxd6 {[%clk 0:00:36.9]} 0-1

[Event "Late-Titled-Tuesday-Blitz-September-12-2023"]
[Site "Chess.com"]
[Date "2023.09.12"]
[Round "4"]
[White "AlexNovitz"]
[Black "fyall777"]
[Result "0-1"]
[WhiteElo "2180"]
[BlackElo "2622"]
[TimeControl "180+1"]
[EndTime "14:36:08 PDT"]
[Termination "fyall777 won by resignation"]

1. e4 {[%clk 0:03:00.9]} 1... c5 {[%clk 0:02:57.7]} 2. Nf3 {[%clk 0:03:00.4]}
2... Nc6 {[%clk 0:02:58.5]} 3. d4 {[%clk 0:03:01]} 3... cxd4 {[%clk 0:02:59.4]}
4. Nxd4 {[%clk 0:03:01.7]} 4... d6 {[%clk 0:02:59.4]} 5. Nc3 {[%clk 0:02:59.4]}
5... Nf6 {[%clk 0:02:58.5]} 6. Bg5 {[%clk 0:02:57.8]} 6... e6 {[%clk 0:02:55.8]}
7. Nxc6 {[%clk 0:02:51.1]} 7... bxc6 {[%clk 0:02:55]} 8. Bd3 {[%clk 0:02:51.7]}
8... e5 {[%clk 0:02:50.9]} 9. O-O {[%clk 0:02:49.5]} 9... h6 {[%clk 0:02:50.8]}
10. Bh4 {[%clk 0:02:46.1]} 10... g5 {[%clk 0:02:50.6]} 11. Bg3 {[%clk
0:02:46.1]} 11... Be6 {[%clk 0:02:48.2]} 12. h4 {[%clk 0:02:39.4]} 12... Be7
{[%clk 0:02:46.8]} 13. Qd2 {[%clk 0:02:34.7]} 13... Nh5 {[%clk 0:02:43.8]} 14.
Qe2 {[%clk 0:02:19]} 14... Nxg3 {[%clk 0:02:36]} 15. fxg3 {[%clk 0:02:19.1]}
15... gxh4 {[%clk 0:02:36.9]} 16. gxh4 {[%clk 0:02:09.4]} 16... Qb6+ {[%clk
0:02:34.6]} 17. Kh2 {[%clk 0:02:07.2]} 17... Qxb2 {[%clk 0:02:33.9]} 18. Qd2
{[%clk 0:01:46.4]} 18... Bxh4 {[%clk 0:02:27.8]} 19. Rab1 {[%clk 0:01:43.7]}
19... Qa3 {[%clk 0:02:27.6]} 20. Rb7 {[%clk 0:01:24.4]} 20... Qa5 {[%clk
0:02:16.9]} 21. Rf3 {[%clk 0:00:58.6]} 21... Bg5 {[%clk 0:02:14.6]} 22. Qe1
{[%clk 0:00:58.1]} 22... O-O-O {[%clk 0:02:05.8]} 23. Qb1 {[%clk 0:00:41.2]}
23... Bf4+ {[%clk 0:01:50.8]} 24. Rxf4 {[%clk 0:00:40.9]} 24... exf4 {[%clk
0:01:49.4]} 25. Rb8+ {[%clk 0:00:27.9]} 25... Kd7 {[%clk 0:01:49.2]} 26. Qb7+
{[%clk 0:00:28.6]} 26... Qc7 {[%clk 0:01:46]} 27. Rxd8+ {[%clk 0:00:18.5]} 27...
Rxd8 {[%clk 0:01:44.7]} 28. Qb2 {[%clk 0:00:19]} 28... Ke7 {[%clk 0:01:38]} 29.
Ne2 {[%clk 0:00:18.3]} 29... d5 {[%clk 0:01:36.7]} 30. Qg7 {[%clk 0:00:14.9]}
30... dxe4 {[%clk 0:01:31.2]} 31. Bxe4 {[%clk 0:00:14.5]} 31... f3+ {[%clk
0:01:30.8]} 32. Ng3 {[%clk 0:00:14.4]} 32... f2 {[%clk 0:01:30.2]} 33. Kh1
{[%clk 0:00:02.1]} 33... Rd1+ {[%clk 0:01:22.6]} 34. Kh2 {[%clk 0:00:01.7]} 0-1

[Event "Late-Titled-Tuesday-Blitz-September-12-2023"]
[Site "Chess.com"]
[Date "2023.09.12"]
[Round "4"]
[White "AsaHoffmann"]
[Black "Orest_Vovk"]
[Result "0-1"]
[WhiteElo "2342"]
[BlackElo "2599"]
[TimeControl "180+1"]
[EndTime "14:36:09 PDT"]
[Termination "Orest_Vovk won by resignation"]

1. d4 {[%clk 0:02:58.3]} 1... h6 {[%clk 0:02:51.2]} 2. e4 {[%clk 0:02:57.3]}
2... g5 {[%clk 0:02:50.7]} 3. Nc3 {[%clk 0:02:56.1]} 3... Bg7 {[%clk 0:02:50.4]}
4. Be3 {[%clk 0:02:55.1]} 4... c5 {[%clk 0:02:48.2]} 5. dxc5 {[%clk 0:02:51.9]}
5... Bxc3+ {[%clk 0:02:46.1]} 6. bxc3 {[%clk 0:02:51.4]} 6... Nc6 {[%clk
0:02:46]} 7. h4 {[%clk 0:02:43.3]} 7... Qa5 {[%clk 0:02:44.5]} 8. Qd2 {[%clk
0:02:37.1]} 8... g4 {[%clk 0:02:42.4]} 9. f3 {[%clk 0:02:30.5]} 9... Nf6 {[%clk
0:02:41.8]} 10. Bc4 {[%clk 0:02:28]} 10... b6 {[%clk 0:02:18.4]} 11. cxb6 {[%clk
0:02:24.5]} 11... axb6 {[%clk 0:02:18]} 12. Rb1 {[%clk 0:02:24.2]} 12... Ba6
{[%clk 0:01:58.6]} 13. Bxb6 {[%clk 0:02:16.1]} 13... Qh5 {[%clk 0:01:58]} 14.
Qe2 {[%clk 0:01:51.3]} 14... gxf3 {[%clk 0:01:50.8]} 15. Nxf3 {[%clk 0:01:45.1]}
15... Bxc4 {[%clk 0:01:47.4]} 16. Qxc4 {[%clk 0:01:44.4]} 16... Rg8 {[%clk
0:01:41.5]} 17. Rg1 {[%clk 0:01:29.9]} 17... Rg4 {[%clk 0:01:17.3]} 18. Nd2
{[%clk 0:01:10.5]} 18... Qxh4+ {[%clk 0:01:11.4]} 19. Bf2 {[%clk 0:01:09.4]}
19... Qg5 {[%clk 0:01:04.7]} 20. Rb5 {[%clk 0:01:02.1]} 20... Qg6 {[%clk
0:00:50.7]} 21. Bd4 {[%clk 0:00:40.3]} 21... Nxe4 {[%clk 0:00:45.3]} 22. Nxe4
{[%clk 0:00:36.7]} 22... Qxe4+ {[%clk 0:00:41.7]} 23. Qe2 {[%clk 0:00:33]} 23...
Qxe2+ {[%clk 0:00:39.1]} 24. Kxe2 {[%clk 0:00:32.9]} 24... Rxd4 {[%clk
0:00:35.7]} 25. Rh5 {[%clk 0:00:24.2]} 25... Rd6 {[%clk 0:00:33.4]} 0-1

[Event "Late-Titled-Tuesday-Blitz-September-12-2023"]
[Site "Chess.com"]
[Date "2023.09.12"]
[Round "4"]
[White "gunslinger222"]
[Black "laskakid"]
[Result "0-1"]
[WhiteElo "2421"]
[BlackElo "2247"]
[TimeControl "180+1"]
[EndTime "14:36:17 PDT"]
[Termination "laskakid won by resignation"]

1. d4 {[%clk 0:02:59.4]} 1... d5 {[%clk 0:02:59.2]} 2. c4 {[%clk 0:02:59.9]}
2... c6 {[%clk 0:02:59.5]} 3. Nc3 {[%clk 0:02:59.6]} 3... Nf6 {[%clk 0:02:59.1]}
4. Nf3 {[%clk 0:03:00.3]} 4... dxc4 {[%clk 0:02:58.8]} 5. e4 {[%clk 0:03:00.7]}
5... b5 {[%clk 0:02:58]} 6. Be2 {[%clk 0:03:01.2]} 6... e6 {[%clk 0:02:56.2]} 7.
O-O {[%clk 0:03:00.9]} 7... Bb7 {[%clk 0:02:43.2]} 8. a4 {[%clk 0:02:54.5]} 8...
a6 {[%clk 0:02:34.9]} 9. Bg5 {[%clk 0:02:39]} 9... Be7 {[%clk 0:02:32.9]} 10. e5
{[%clk 0:02:37.3]} 10... Nd5 {[%clk 0:02:32.5]} 11. Ne4 {[%clk 0:02:38]} 11...
O-O {[%clk 0:02:25]} 12. Qd2 {[%clk 0:02:31.7]} 12... Nd7 {[%clk 0:02:17]} 13.
Nd6 {[%clk 0:02:29.8]} 13... Rb8 {[%clk 0:02:08.6]} 14. axb5 {[%clk 0:02:13.2]}
14... axb5 {[%clk 0:02:00.6]} 15. Bxe7 {[%clk 0:01:56.9]} 15... Nxe7 {[%clk
0:01:35.3]} 16. Ng5 {[%clk 0:01:44.2]} 16... h6 {[%clk 0:01:08]} 17. Ngxf7
{[%clk 0:01:25.9]} 17... Rxf7 {[%clk 0:01:07.5]} 18. Nxf7 {[%clk 0:01:26.4]}
18... Kxf7 {[%clk 0:01:07.1]} 19. Qf4+ {[%clk 0:01:24.1]} 19... Kg8 {[%clk
0:01:04.5]} 20. Qg4 {[%clk 0:01:04.2]} 20... Nf8 {[%clk 0:01:04.2]} 21. f4
{[%clk 0:00:58.8]} 21... Qxd4+ {[%clk 0:01:03.4]} 22. Kh1 {[%clk 0:00:57.7]}
22... Qxb2 {[%clk 0:00:59.5]} 23. Bf3 {[%clk 0:00:52.3]} 23... Nf5 {[%clk
0:00:54.8]} 24. Rae1 {[%clk 0:00:49.1]} 24... c3 {[%clk 0:00:50.6]} 25. Be4
{[%clk 0:00:48.3]} 25... c5 {[%clk 0:00:41.1]} 26. Bxb7 {[%clk 0:00:47]} 26...
Rxb7 {[%clk 0:00:40.8]} 27. Qf3 {[%clk 0:00:42.1]} 27... Rd7 {[%clk 0:00:39.1]}
28. g4 {[%clk 0:00:40.3]} 28... Nd4 {[%clk 0:00:36]} 29. Qd3 {[%clk 0:00:37.2]}
29... Nc2 {[%clk 0:00:29.4]} 0-1

[Event "Late-Titled-Tuesday-Blitz-September-12-2023"]
[Site "Chess.com"]
[Date "2023.09.12"]
[Round "4"]
[White "artooon"]
[Black "baki83"]
[Result "0-1"]
[WhiteElo "3034"]
[BlackElo "2840"]
[TimeControl "180+1"]
[EndTime "14:36:27 PDT"]
[Termination "baki83 won by resignation"]

1. e4 {[%clk 0:03:00.9]} 1... c5 {[%clk 0:02:57.1]} 2. Nf3 {[%clk 0:03:00.9]}
2... d6 {[%clk 0:02:57.6]} 3. d4 {[%clk 0:03:01]} 3... cxd4 {[%clk 0:02:58]} 4.
Nxd4 {[%clk 0:03:01.9]} 4... Nf6 {[%clk 0:02:58.6]} 5. Nc3 {[%clk 0:03:02.5]}
5... Nc6 {[%clk 0:02:59.3]} 6. Bg5 {[%clk 0:03:01.7]} 6... e6 {[%clk 0:02:59.4]}
7. Bb5 {[%clk 0:03:00.2]} 7... Bd7 {[%clk 0:02:57.8]} 8. Qd3 {[%clk 0:03:00.8]}
8... Be7 {[%clk 0:02:56.4]} 9. O-O-O {[%clk 0:03:00.4]} 9... Qb6 {[%clk
0:02:56.4]} 10. Be3 {[%clk 0:02:54.4]} 10... Qc7 {[%clk 0:02:53.1]} 11. f3
{[%clk 0:02:51]} 11... a6 {[%clk 0:02:51.6]} 12. Bxc6 {[%clk 0:02:50.9]} 12...
bxc6 {[%clk 0:02:52]} 13. Nb3 {[%clk 0:02:51.5]} 13... c5 {[%clk 0:02:49.9]} 14.
Qe2 {[%clk 0:02:41.2]} 14... O-O {[%clk 0:02:47]} 15. g4 {[%clk 0:02:40]} 15...
Rfb8 {[%clk 0:02:43.7]} 16. g5 {[%clk 0:02:36.5]} 16... Ne8 {[%clk 0:02:42.3]}
17. h4 {[%clk 0:02:36.8]} 17... a5 {[%clk 0:02:40.3]} 18. a3 {[%clk 0:02:34]}
18... Qb7 {[%clk 0:02:29]} 19. a4 {[%clk 0:02:12.1]} 19... Qb4 {[%clk
0:02:28.9]} 20. h5 {[%clk 0:01:55.6]} 20... Bxa4 {[%clk 0:01:52.1]} 21. g6
{[%clk 0:01:55]} 21... Bxb3 {[%clk 0:01:47]} 22. cxb3 {[%clk 0:01:55.9]} 22...
Qxb3 {[%clk 0:01:47.1]} 23. f4 {[%clk 0:01:26.3]} 23... a4 {[%clk 0:01:46.9]}
24. gxh7+ {[%clk 0:01:14.1]} 24... Kxh7 {[%clk 0:01:45.2]} 25. h6 {[%clk
0:01:14]} 25... g6 {[%clk 0:01:43.9]} 26. f5 {[%clk 0:00:55.6]} 26... a3 {[%clk
0:01:44]} 27. fxg6+ {[%clk 0:00:53.5]} 27... fxg6 {[%clk 0:01:44.2]} 28. Rhf1
{[%clk 0:00:41]} 28... Nf6 {[%clk 0:01:23.3]} 29. e5 {[%clk 0:00:34.5]} 29...
axb2+ {[%clk 0:01:21]} 30. Kd2 {[%clk 0:00:34.5]} 30... dxe5 {[%clk 0:01:20.7]}
31. Nb1 {[%clk 0:00:03.7]} 31... Ne4+ {[%clk 0:01:16.3]} 32. Ke1 {[%clk
0:00:03.9]} 32... Bh4+ {[%clk 0:01:13.1]} 33. Bf2 {[%clk 0:00:02.3]} 33... Qb4+
{[%clk 0:01:12.2]} 34. Nd2 {[%clk 0:00:01.5]} 34... Nxd2 {[%clk 0:01:07.6]} 35.
Rxd2 {[%clk 0:00:01.3]} 35... b1=Q+ {[%clk 0:01:07.4]} 36. Qd1 {[%clk
0:00:02.2]} 36... Qxd1+ {[%clk 0:01:07.5]} 37. Kxd1 {[%clk 0:00:02.3]} 37...
Ra1+ {[%clk 0:01:07.5]} 38. Ke2 {[%clk 0:00:02.7]} 38... Qe4+ {[%clk 0:01:07.7]}
39. Be3 {[%clk 0:00:03.6]} 39... Qc4+ {[%clk 0:01:06.8]} 40. Rd3 {[%clk
0:00:03.3]} 40... Rb2+ {[%clk 0:01:06]} 0-1

[Event "Late-Titled-Tuesday-Blitz-September-12-2023"]
[Site "Chess.com"]
[Date "2023.09.12"]
[Round "4"]
[White "Ducke13"]
[Black "Rutricks"]
[Result "0-1"]
[WhiteElo "2508"]
[BlackElo "2689"]
[TimeControl "180+1"]
[EndTime "14:36:38 PDT"]
[Termination "Rutricks won on time"]

1. d4 {[%clk 0:02:45.5]} 1... g6 {[%clk 0:02:58.6]} 2. g3 {[%clk 0:02:45.9]}
2... Bg7 {[%clk 0:02:59]} 3. Bg2 {[%clk 0:02:46.4]} 3... d6 {[%clk 0:02:56.1]}
4. e4 {[%clk 0:02:45.5]} 4... Nd7 {[%clk 0:02:55.9]} 5. Ne2 {[%clk 0:02:45.5]}
5... e5 {[%clk 0:02:55.9]} 6. c3 {[%clk 0:02:20.5]} 6... h5 {[%clk 0:02:56]} 7.
h3 {[%clk 0:02:14.8]} 7... c6 {[%clk 0:02:52.8]} 8. a4 {[%clk 0:02:13.9]} 8...
Qe7 {[%clk 0:02:51.9]} 9. Be3 {[%clk 0:02:08.9]} 9... Ngf6 {[%clk 0:02:51.4]}
10. a5 {[%clk 0:02:05.1]} 10... exd4 {[%clk 0:02:50.9]} 11. Qxd4 {[%clk
0:01:53]} 11... O-O {[%clk 0:02:48.9]} 12. Nd2 {[%clk 0:01:50.5]} 12... Nc5
{[%clk 0:02:42]} 13. e5 {[%clk 0:01:40.5]} 13... Qxe5 {[%clk 0:02:41.9]} 14.
Qxe5 {[%clk 0:01:39.7]} 14... Nd3+ {[%clk 0:02:42.3]} 15. Kf1 {[%clk 0:01:28.1]}
15... Nxe5 {[%clk 0:02:40.1]} 16. a6 {[%clk 0:01:22.1]} 16... Nd5 {[%clk
0:02:14.9]} 17. Bd4 {[%clk 0:01:13]} 17... b6 {[%clk 0:01:50.5]} 18. Ne4 {[%clk
0:01:08.8]} 18... Rd8 {[%clk 0:01:46.7]} 19. Kg1 {[%clk 0:00:25.3]} 19... Rb8
{[%clk 0:01:32.4]} 20. Kh2 {[%clk 0:00:24.5]} 20... c5 {[%clk 0:01:33]} 21. Bxe5
{[%clk 0:00:23.1]} 21... Bxe5 {[%clk 0:01:33.2]} 22. Rhd1 {[%clk 0:00:21.4]}
22... Nc7 {[%clk 0:01:06.4]} 23. f4 {[%clk 0:00:20.5]} 23... Bg7 {[%clk
0:01:07.1]} 24. Nxd6 {[%clk 0:00:16.3]} 24... Bxa6 {[%clk 0:01:07.7]} 25. Ng1
{[%clk 0:00:12]} 25... h4 {[%clk 0:01:08.1]} 26. g4 {[%clk 0:00:11.6]} 26... Bh6
{[%clk 0:01:06.6]} 27. g5 {[%clk 0:00:11.3]} 27... Bf8 {[%clk 0:01:07.2]} 28.
Nf3 {[%clk 0:00:12]} 28... Bxd6 {[%clk 0:01:07]} 29. Nxh4 {[%clk 0:00:10.2]}
29... Bxf4+ {[%clk 0:01:07.1]} 30. Kh1 {[%clk 0:00:10.8]} 30... Bxg5 {[%clk
0:01:06.3]} 31. Nf3 {[%clk 0:00:10.8]} 31... Rxd1+ {[%clk 0:01:05.9]} 32. Rxd1
{[%clk 0:00:10.1]} 32... Rd8 {[%clk 0:01:06.8]} 33. Ra1 {[%clk 0:00:09.2]} 33...
Bf6 {[%clk 0:01:06.7]} 34. Nh2 {[%clk 0:00:08.7]} 34... Rd2 {[%clk 0:01:02.5]}
35. Ng4 {[%clk 0:00:07.4]} 35... Kg7 {[%clk 0:01:02.4]} 36. Rf1 {[%clk
0:00:06.6]} 36... Bxf1 {[%clk 0:01:00.2]} 37. Bxf1 {[%clk 0:00:07.5]} 37... Rxb2
{[%clk 0:00:59.5]} 38. c4 {[%clk 0:00:06.7]} 38... a5 {[%clk 0:00:58.5]} 39. h4
{[%clk 0:00:07.1]} 39... a4 {[%clk 0:00:58.6]} 40. h5 {[%clk 0:00:07.2]} 40...
gxh5 {[%clk 0:00:59.5]} 41. Ne3 {[%clk 0:00:03.5]} 41... a3 {[%clk 0:00:59.4]}
42. Nf5+ {[%clk 0:00:04.2]} 42... Kf8 {[%clk 0:00:59.5]} 43. Ne3 {[%clk
0:00:01.5]} 43... a2 {[%clk 0:00:59.5]} 0-1

[Event "Late-Titled-Tuesday-Blitz-September-12-2023"]
[Site "Chess.com"]
[Date "2023.09.12"]
[Round "4"]
[White "lluiss"]
[Black "PapaieDudu"]
[Result "0-1"]
[WhiteElo "2164"]
[BlackElo "2294"]
[TimeControl "180+1"]
[EndTime "14:36:38 PDT"]
[Termination "PapaieDudu won by resignation"]

1. Nf3 {[%clk 0:03:00.9]} 1... d5 {[%clk 0:02:59.9]} 2. d4 {[%clk 0:03:00.1]}
2... Nf6 {[%clk 0:03:00]} 3. c4 {[%clk 0:03:00.3]} 3... e6 {[%clk 0:03:00.1]} 4.
cxd5 {[%clk 0:03:01.2]} 4... exd5 {[%clk 0:03:01]} 5. Nc3 {[%clk 0:03:00.7]}
5... c6 {[%clk 0:03:00.6]} 6. Qc2 {[%clk 0:03:00.6]} 6... Be7 {[%clk 0:02:57.9]}
7. Bg5 {[%clk 0:03:01]} 7... O-O {[%clk 0:02:56]} 8. e3 {[%clk 0:03:01.5]} 8...
Nbd7 {[%clk 0:02:55.1]} 9. Bd3 {[%clk 0:03:01.8]} 9... h6 {[%clk 0:02:55.5]} 10.
Bh4 {[%clk 0:02:59.8]} 10... Re8 {[%clk 0:02:51.4]} 11. h3 {[%clk 0:02:54.9]}
11... Ne4 {[%clk 0:02:48.1]} 12. Bxe7 {[%clk 0:02:54]} 12... Qxe7 {[%clk
0:02:48.4]} 13. Bxe4 {[%clk 0:02:52.2]} 13... dxe4 {[%clk 0:02:48.3]} 14. Nd2
{[%clk 0:02:52.7]} 14... f5 {[%clk 0:02:47.2]} 15. O-O-O {[%clk 0:02:51.6]}
15... b5 {[%clk 0:02:43.6]} 16. Kb1 {[%clk 0:02:50.1]} 16... a5 {[%clk
0:02:39.7]} 17. Ne2 {[%clk 0:02:46.9]} 17... c5 {[%clk 0:02:32.6]} 18. g4 {[%clk
0:02:02.1]} 18... c4 {[%clk 0:02:13.4]} 19. gxf5 {[%clk 0:02:00.6]} 19... Nf6
{[%clk 0:02:04.9]} 20. Ng3 {[%clk 0:01:49.3]} 20... Bb7 {[%clk 0:01:56.8]} 21.
Rhe1 {[%clk 0:01:37.5]} 21... Bd5 {[%clk 0:01:50]} 22. f3 {[%clk 0:01:29]} 22...
exf3 {[%clk 0:01:22.9]} 23. e4 {[%clk 0:01:28.9]} 23... f2 {[%clk 0:01:21.7]}
24. Re2 {[%clk 0:01:25.4]} 24... b4 {[%clk 0:01:05.8]} 25. exd5 {[%clk 0:01:23]}
25... Qxe2 {[%clk 0:00:43.4]} 26. Nxe2 {[%clk 0:01:21.7]} 26... Rxe2 {[%clk
0:00:44.3]} 27. Qc1 {[%clk 0:00:34.4]} 27... Rae8 {[%clk 0:00:41.4]} 28. Nf3
{[%clk 0:00:34.4]} 28... c3 {[%clk 0:00:30.3]} 29. bxc3 {[%clk 0:00:31]} 29...
Nxd5 {[%clk 0:00:30.7]} 30. cxb4 {[%clk 0:00:29.6]} 30... Rb8 {[%clk 0:00:25.7]}
31. a3 {[%clk 0:00:22.8]} 31... axb4 {[%clk 0:00:25.4]} 32. a4 {[%clk
0:00:18.4]} 32... Nc3+ {[%clk 0:00:24.6]} 0-1

[Event "Late-Titled-Tuesday-Blitz-September-12-2023"]
[Site "Chess.com"]
[Date "2023.09.12"]
[Round "4"]
[White "FuenfgegenWilly"]
[Black "hellokostya"]
[Result "1/2-1/2"]
[WhiteElo "2386"]
[BlackElo "2590"]
[TimeControl "180+1"]
[EndTime "14:36:39 PDT"]
[Termination "Game drawn by agreement"]

1. Nf3 {[%clk 0:03:00.9]} 1... Nf6 {[%clk 0:03:00]} 2. g3 {[%clk 0:02:58.3]}
2... g6 {[%clk 0:03:00.6]} 3. Bg2 {[%clk 0:02:58.7]} 3... Bg7 {[%clk 0:03:00.9]}
4. O-O {[%clk 0:02:59]} 4... O-O {[%clk 0:03:01.5]} 5. c4 {[%clk 0:02:59.4]}
5... d6 {[%clk 0:03:01.9]} 6. d4 {[%clk 0:02:56.9]} 6... Nc6 {[%clk 0:02:59.2]}
7. Nc3 {[%clk 0:02:54.2]} 7... e5 {[%clk 0:02:58]} 8. dxe5 {[%clk 0:02:53.8]}
8... dxe5 {[%clk 0:02:57.5]} 9. Bg5 {[%clk 0:02:54]} 9... Be6 {[%clk 0:02:57.1]}
10. Nd5 {[%clk 0:02:41.2]} 10... Bxd5 {[%clk 0:02:43.6]} 11. Bxf6 {[%clk
0:02:40.6]} 11... Qxf6 {[%clk 0:02:37.8]} 12. cxd5 {[%clk 0:02:40.8]} 12... Ne7
{[%clk 0:02:21.7]} 13. Qb3 {[%clk 0:02:28.2]} 13... Qb6 {[%clk 0:02:11.8]} 14.
Rac1 {[%clk 0:02:23.3]} 14... Qxb3 {[%clk 0:02:08.1]} 15. axb3 {[%clk
0:02:24.2]} 15... Nxd5 {[%clk 0:02:08]} 16. Nxe5 {[%clk 0:02:23.9]} 16... Bxe5
{[%clk 0:02:08.9]} 17. Bxd5 {[%clk 0:02:23.6]} 17... c6 {[%clk 0:02:08.6]} 18.
Bf3 {[%clk 0:02:14]} 18... Bxb2 {[%clk 0:02:03.9]} 19. Rc4 {[%clk 0:02:10.8]}
19... Bf6 {[%clk 0:01:52.1]} 20. h4 {[%clk 0:02:10.9]} 20... Rfd8 {[%clk
0:01:47.2]} 21. Kg2 {[%clk 0:02:08.5]} 21... h5 {[%clk 0:01:46.3]} 22. g4 {[%clk
0:01:54.5]} 22... hxg4 {[%clk 0:01:37.3]} 23. Rxg4 {[%clk 0:01:55.4]} 23... Rd4
{[%clk 0:01:32.8]} 24. Rxd4 {[%clk 0:01:50.6]} 24... Bxd4 {[%clk 0:01:33.7]} 25.
Rd1 {[%clk 0:01:51]} 25... Bf6 {[%clk 0:01:24.8]} 26. Rd7 {[%clk 0:01:50.7]}
26... Rb8 {[%clk 0:01:20.2]} 27. h5 {[%clk 0:01:50.2]} 27... Kg7 {[%clk
0:01:04.5]} 28. Bg4 {[%clk 0:01:20.8]} 28... Kf8 {[%clk 0:00:46]} 29. hxg6
{[%clk 0:01:10.9]} 29... fxg6 {[%clk 0:00:46.9]} 30. f4 {[%clk 0:01:07]} 30...
a5 {[%clk 0:00:44.4]} 31. Rc7 {[%clk 0:00:58.8]} 31... Bd8 {[%clk 0:00:26]} 32.
Rc8 {[%clk 0:00:52.8]} 32... Rxc8 {[%clk 0:00:25.2]} 33. Bxc8 {[%clk 0:00:53.7]}
33... b5 {[%clk 0:00:25.3]} 34. Bd7 {[%clk 0:00:54.1]} 34... a4 {[%clk
0:00:24.9]} 35. bxa4 {[%clk 0:00:54]} 35... bxa4 {[%clk 0:00:25.8]} 36. Bxc6
{[%clk 0:00:54.4]} 36... a3 {[%clk 0:00:26.4]} 37. Bd5 {[%clk 0:00:53.5]} 37...
Bc7 {[%clk 0:00:26.4]} 38. Kf3 {[%clk 0:00:52.6]} 38... Ke7 {[%clk 0:00:26.4]}
39. e4 {[%clk 0:00:50.9]} 39... Kd6 {[%clk 0:00:24.7]} 40. Kg4 {[%clk
0:00:51.4]} 40... Kc5 {[%clk 0:00:22.2]} 41. Kg5 {[%clk 0:00:51.5]} 41... Kd4
{[%clk 0:00:21.8]} 42. Kxg6 {[%clk 0:00:32.8]} 42... Bxf4 {[%clk 0:00:21.7]} 43.
Kf5 {[%clk 0:00:33]} 1/2-1/2

[Event "Late-Titled-Tuesday-Blitz-September-12-2023"]
[Site "Chess.com"]
[Date "2023.09.12"]
[Round "4"]
[White "Mikhal867"]
[Black "stolencandy13"]
[Result "1-0"]
[WhiteElo "2450"]
[BlackElo "2604"]
[TimeControl "180+1"]
[EndTime "14:36:41 PDT"]
[Termination "Mikhal867 won by checkmate"]

1. d4 {[%clk 0:02:56.6]} 1... Nf6 {[%clk 0:02:59.6]} 2. c4 {[%clk 0:02:55.9]}
2... c5 {[%clk 0:02:59.3]} 3. Nf3 {[%clk 0:02:52.2]} 3... cxd4 {[%clk
0:02:59.4]} 4. Nxd4 {[%clk 0:02:52.5]} 4... e5 {[%clk 0:02:59.8]} 5. Nb5 {[%clk
0:02:52.8]} 5... d5 {[%clk 0:03:00]} 6. cxd5 {[%clk 0:02:52.7]} 6... Bc5 {[%clk
0:02:59.7]} 7. e3 {[%clk 0:02:52]} 7... O-O {[%clk 0:02:56.3]} 8. a4 {[%clk
0:02:45.2]} 8... a6 {[%clk 0:02:41.6]} 9. N5c3 {[%clk 0:02:42.6]} 9... e4 {[%clk
0:02:41.6]} 10. Be2 {[%clk 0:02:40]} 10... Re8 {[%clk 0:02:39.1]} 11. Na3 {[%clk
0:02:32.4]} 11... Nbd7 {[%clk 0:02:33.8]} 12. Nc4 {[%clk 0:02:30.5]} 12... Rb8
{[%clk 0:02:26]} 13. O-O {[%clk 0:02:26.8]} 13... b5 {[%clk 0:02:21.8]} 14. axb5
{[%clk 0:02:26.5]} 14... axb5 {[%clk 0:02:22.7]} 15. Na5 {[%clk 0:02:26.7]}
15... Ne5 {[%clk 0:02:08.5]} 16. Nc6 {[%clk 0:02:17.8]} 16... Nxc6 {[%clk
0:02:00.6]} 17. dxc6 {[%clk 0:02:16.9]} 17... b4 {[%clk 0:01:40.3]} 18. Qxd8
{[%clk 0:02:14.2]} 18... Rxd8 {[%clk 0:01:40.2]} 19. c7 {[%clk 0:02:13.7]} 19...
Be6 {[%clk 0:01:30.7]} 20. Na4 {[%clk 0:02:10.8]} 20... Bd6 {[%clk 0:01:22.8]}
21. cxd8=Q+ {[%clk 0:02:09.5]} 21... Rxd8 {[%clk 0:01:22.5]} 22. Rd1 {[%clk
0:02:04.5]} 22... Bc4 {[%clk 0:01:19.2]} 23. Bxc4 {[%clk 0:01:49.6]} 23... Bxh2+
{[%clk 0:01:17.2]} 24. Kxh2 {[%clk 0:01:49.7]} 24... Rxd1 {[%clk 0:01:17.9]} 25.
b3 {[%clk 0:01:45.5]} 25... Ng4+ {[%clk 0:01:08.7]} 26. Kg3 {[%clk 0:01:45]}
26... h5 {[%clk 0:01:08.8]} 27. Be2 {[%clk 0:01:40.2]} 27... Rh1 {[%clk
0:00:58.9]} 28. Bxg4 {[%clk 0:01:38.9]} 28... g5 {[%clk 0:00:59.6]} 29. f3
{[%clk 0:01:23.5]} 29... hxg4 {[%clk 0:00:49.8]} 30. fxg4 {[%clk 0:01:20.2]}
30... Re1 {[%clk 0:00:43.8]} 31. Nc5 {[%clk 0:01:16.5]} 31... Kg7 {[%clk
0:00:39.5]} 32. Nxe4 {[%clk 0:01:15.6]} 32... Kg6 {[%clk 0:00:37.9]} 33. Ra6+
{[%clk 0:01:08]} 33... f6 {[%clk 0:00:33.3]} 34. Rxf6+ {[%clk 0:01:06.2]} 34...
Kg7 {[%clk 0:00:33.8]} 35. Bb2 {[%clk 0:01:03.3]} 35... Kh7 {[%clk 0:00:28.2]}
36. Nxg5+ {[%clk 0:01:02]} 36... Kg8 {[%clk 0:00:28.6]} 37. Bd4 {[%clk
0:00:57.9]} 37... Rc1 {[%clk 0:00:26.1]} 38. Ne6 {[%clk 0:00:53.1]} 38... Rc6
{[%clk 0:00:23.7]} 39. g5 {[%clk 0:00:50.5]} 39... Kh7 {[%clk 0:00:23.4]} 40.
g6+ {[%clk 0:00:49.4]} 40... Kh6 {[%clk 0:00:21.4]} 41. g7+ {[%clk 0:00:48.8]}
41... Kh7 {[%clk 0:00:18]} 42. Ng5+ {[%clk 0:00:47.7]} 42... Kg8 {[%clk
0:00:17]} 43. Rf8# {[%clk 0:00:42.8]} 1-0